bitfinex/quotes_BTCUSD_20230907
["timestamp","ask_amount","ask_price","bid_price","bid_amount"]
[1694116044803,0.62422695,25891.0,25890.0,0.09021153]
[1694116045382,0.67854016,25891.0,25890.0,0.09021153]
[1694116045815,0.67854016,25891.0,25890.0,0.06131457]
[1694116046040,0.67854016,25891.0,25890.0,0.09021153]
[1694116048512,0.67854016,25891.0,25890.0,0.06131457]
[1694116048732,0.72474857,25891.0,25890.0,0.043]
[1694116049352,0.72274857,25891.0,25890.0,0.022]
[1694116049563,0.72074857,25891.0,25889.0,0.04721153]
[1694116049776,0.60017018,25890.0,25889.0,0.04721153]
[1694116050180,0.50775322,25890.0,25889.0,0.04721153]
[1694116051009,0.60763445,25890.0,25889.0,0.04721153]
[1694116051453,0.51175322,25890.0,25889.0,0.04721153]
[1694116051663,0.51775322,25890.0,25889.0,0.04821153]
[1694116055359,0.39855322,25890.0,25889.0,0.2124201]
[1694116060414,0.45286925,25890.0,25889.0,0.2124201]
[1694116068715,0.45332392,25890.0,25889.0,0.2124201]
[1694116080429,0.54574088,25890.0,25889.0,0.2124201]
[1694116083422,0.68442302,25890.0,25889.0,0.2124201]
[1694116084439,0.59200606,25890.0,25889.0,0.2124201]
[1694116084646,0.77696606,25890.0,25889.0,0.2124201]
[1694116085054,0.59200606,25890.0,25889.0,0.2124201]
[1694116087214,0.77696606,25890.0,25889.0,0.2124201]
[1694116089305,0.2497307,25890.0,25889.0,1.05616082]
[1694116089528,0.0647707,25890.0,25889.0,2.76032293]
[1694116089750,0.0647707,25890.0,25889.0,2.60490164]
[1694116089965,0.01,25890.0,25889.0,2.60490164]
[1694116090408,0.02,25891.0,25890.0,0.08]
[1694116090616,0.02,25891.0,25890.0,2.56390853]
[1694116092119,0.02,25891.0,25890.0,2.60381464]
[1694116093152,0.022,25891.0,25890.0,2.62581464]
[1694116093353,0.024,25891.0,25890.0,2.64681464]
[1694116093559,0.022,25891.0,25890.0,2.62481464]
[1694116093789,0.024,25891.0,25890.0,2.64881464]
[1694116093969,0.022,25891.0,25890.0,2.62781464]
[1694116095533,0.024,25891.0,25890.0,2.65181464]
[1694116096559,0.024,25891.0,25890.0,3.42431364]
[1694116097191,0.024,25891.0,25890.0,4.21966686]
[1694116097442,0.024,25891.0,25890.0,4.35422686]
[1694116097627,0.024,25891.0,25890.0,4.65278686]
[1694116097842,0.024,25891.0,25890.0,4.65254686]
[1694116098258,0.024,25891.0,25890.0,4.65344686]
[1694116098465,0.02,25891.0,25890.0,4.60538686]
[1694116098684,0.02,25891.0,25890.0,4.60568686]
[1694116098893,0.024,25891.0,25890.0,4.65886686]
[1694116099115,0.022,25891.0,25890.0,4.63386686]
[1694116099328,0.02,25891.0,25890.0,4.60850686]
[1694116099541,0.022,25891.0,25890.0,4.63236686]
[1694116099716,0.024,25891.0,25890.0,4.65706686]
[1694116099927,0.024,25891.0,25890.0,4.65688686]
[1694116100129,0.024,25891.0,25890.0,4.8195977]
[1694116100333,0.14710878,25899.0,25898.0,0.04721153]
[1694116100486,0.14710878,25899.0,25898.0,1.09409282]
[1694116100686,0.13892927,25899.0,25898.0,1.09409282]
[1694116100886,0.13892927,25899.0,25898.0,0.93867153]
[1694116101821,0.20808243,25899.0,25898.0,0.94067153]
[1694116101978,0.23208243,25899.0,25898.0,0.94267153]
[1694116103631,0.09315316,25899.0,25898.0,0.94267153]
[1694116104229,0.09315316,25899.0,25898.0,0.17041153]
[1694116104428,0.09315316,25899.0,25898.0,0.05121153]
[1694116105422,0.09315316,25899.0,25897.0,1.663777]
[1694116106447,0.05215316,25899.0,25897.0,1.663777]
[1694116106675,0.07715316,25899.0,25897.0,1.665777]
[1694116106856,0.09615316,25899.0,25897.0,1.667777]
[1694116116109,0.09615316,25899.0,25897.0,0.895505]
[1694116117751,0.15324433,25899.0,25897.0,0.895505]
[1694116118276,0.09615316,25899.0,25897.0,0.895505]
[1694116119700,0.09601597,25899.0,25897.0,0.895505]
[1694116119924,0.09601597,25899.0,25898.0,0.05426797]
[1694116120798,0.07101597,25899.0,25898.0,0.05426797]
[1694116121165,0.05201597,25899.0,25898.0,0.05426797]
[1694116122175,0.07701597,25899.0,25898.0,0.05626797]
[1694116122814,0.09601597,25899.0,25898.0,0.05826797]
[1694116125112,0.09601597,25899.0,25898.0,1.60278797]
[1694116126184,0.09601597,25899.0,25898.0,2.49424797]
[1694116134716,0.18840273,25899.0,25898.0,2.49424797]
[1694116136435,0.09601597,25899.0,25898.0,2.49424797]
[1694116136614,0.09601597,25899.0,25898.0,2.43998]
[1694116138014,0.05201597,25899.0,25898.0,2.43598]
[1694116138481,0.024,25899.0,25898.0,2.43798]
[1694116138872,0.05194193,25899.0,25898.0,2.43598]
[1694116139180,0.018,25899.0,25898.0,2.44598]
[1694116139398,0.001,25899.0,25898.0,2.44398]
[1694116139527,0.001,25899.0,25898.0,2.45398]
[1694116139528,0.002,25899.0,25898.0,2.45398]
[1694116159297,0.002,25899.0,25898.0,2.55388611]
[1694116159417,0.002,25899.0,25898.0,2.57388611]
[1694116177967,0.002,25899.0,25898.0,2.55388611]
[1694116179671,0.002,25899.0,25898.0,2.68939126]
[1694116179871,0.002,25899.0,25898.0,2.57019126]
[1694116195989,0.0462432,25899.0,25898.0,2.57019126]
[1694116200149,0.0462432,25899.0,25898.0,2.55028515]
[1694116200369,0.23131603,25904.0,25900.0,0.17990611]
[1694116200542,0.23131603,25906.0,25902.0,0.08]
[1694116200742,0.23131603,25907.0,25904.0,0.772081]
[1694116200993,0.23131603,25907.0,25906.0,0.891221]
[1694116201144,0.23131603,25907.0,25906.0,2.59068429]
[1694116201339,0.23131603,25907.0,25906.0,1.544042]
[1694116201579,0.09238676,25908.0,25906.0,2.47148429]
[1694116201741,0.32372187,25909.0,25906.0,3.36270529]
[1694116201742,0.09238676,25909.0,25906.0,3.36270529]
[1694116201949,0.09238676,25909.0,25908.0,0.1192]
[1694116201950,0.13892927,25909.0,25908.0,0.1192]
[1694116202173,0.23161192,25909.0,25908.0,3.207048]
[1694116202406,0.23161192,25910.0,25908.0,3.26224033]
[1694116202576,0.09268265,25909.0,25908.0,2.37107833]
[1694116203104,0.15914542,25909.0,25908.0,2.37107833]
[1694116203815,0.06646277,25909.0,25908.0,2.37107833]
[1694116203961,0.15914542,25909.0,25908.0,2.37107833]
[1694116204589,0.06646277,25909.0,25908.0,2.37907833]
[1694116204788,0.06646277,25909.0,25908.0,2.38607833]
[1694116205925,0.06646277,25909.0,25908.0,2.50527833]
[1694116207905,0.38361192,25911.0,25908.0,2.50527833]
[1694116208460,0.06647321,25909.0,25908.0,2.50527833]
[1694116208663,0.24468265,25911.0,25908.0,2.49827833]
[1694116209072,0.25468265,25911.0,25908.0,2.49927833]
[1694116209611,0.25468265,25911.0,25908.0,2.49127833]
[1694116209749,0.26168265,25911.0,25908.0,2.49127833]
[1694116209948,0.26168265,25911.0,25909.0,0.09612811]
[1694116210156,0.26168265,25911.0,25910.0,0.771902]
[1694116210348,0.10968265,25911.0,25910.0,1.543804]
[1694116210754,0.09968265,25911.0,25910.0,1.543804]
[1694116210957,0.09268265,25911.0,25910.0,1.543804]
[1694116211186,0.10968265,25911.0,25910.0,1.543804]
[1694116211369,0.017,25911.0,25910.0,1.543804]
[1694116211572,0.017,25911.0,25910.0,0.771902]
[1694116211995,0.007,25911.0,25910.0,0.771902]
[1694116212514,0.017,25911.0,25910.0,0.772902]
[1694116214091,0.10968265,25911.0,25910.0,0.772902]
[1694116214342,0.017,25911.0,25910.0,0.772902]
[1694116222433,0.017,25911.0,25910.0,0.001]
[1694116225409,0.08356236,25911.0,25910.0,0.001]
[1694116225615,0.17624501,25911.0,25910.0,0.001]
[1694116225790,1.23045874,25911.0,25910.0,0.001]
[1694116225990,1.23045874,25911.0,25905.0,0.0009866]
[1694116225991,0.08,25908.0,25905.0,0.0009866]
[1694116226196,0.54397451,25907.0,25905.0,0.0009866]
[1694116226449,0.62215451,25907.0,25903.0,0.05714067]
[1694116226661,0.71489788,25907.0,25903.0,0.05714067]
[1694116226833,0.61057451,25907.0,25904.0,0.12207702]
[1694116227032,0.1192,25905.0,25904.0,0.12207702]
[1694116227234,0.50775322,25905.0,25904.0,0.12207702]
[1694116228405,0.61341133,25905.0,25903.0,0.002]
[1694116228632,0.38855322,25904.0,25903.0,0.002]
[1694116229074,0.38855322,25904.0,25901.0,0.772168]
[1694116229514,0.38855322,25904.0,25903.0,0.002]
[1694116229752,0.38855322,25904.0,25901.0,0.772168]
[1694116230005,0.40355322,25904.0,25903.0,0.001]
[1694116230304,0.42155322,25904.0,25903.0,0.001]
[1694116230748,0.40355322,25904.0,25903.0,0.001]
[1694116230983,0.53118013,25904.0,25903.0,0.002]
[1694116236414,0.86142463,25904.0,25903.0,0.002]
[1694116236630,1.35301138,25904.0,25903.0,0.002]
[1694116236842,1.28328094,25904.0,25903.0,0.002]
[1694116237047,1.43334094,25904.0,25903.0,0.002]
[1694116237258,1.43328094,25904.0,25903.0,0.002]
[1694116237467,1.50778442,25904.0,25903.0,0.002]
[1694116237667,1.49698442,25904.0,25903.0,0.002]
[1694116237886,1.49464442,25904.0,25903.0,0.002]
[1694116238091,1.49728442,25904.0,25903.0,0.002]
[1694116238308,1.49794442,25904.0,25903.0,0.002]
[1694116238516,1.32235767,25904.0,25903.0,0.002]
[1694116238729,1.51384442,25904.0,25903.0,0.002]
[1694116238955,1.51360442,25904.0,25903.0,0.002]
[1694116239162,1.51198442,25904.0,25903.0,0.002]
[1694116239365,1.51180442,25904.0,25903.0,0.002]
[1694116239573,1.51162442,25904.0,25903.0,0.002]
[1694116239786,1.67154811,25904.0,25903.0,0.002]
[1694116239995,1.67244811,25904.0,25903.0,0.002]
[1694116240202,1.67226811,25904.0,25903.0,0.002]
[1694116240413,1.48633885,25904.0,25903.0,0.002]
[1694116240627,1.48609885,25904.0,25903.0,0.002]
[1694116240827,1.71771728,25904.0,25903.0,0.002]
[1694116241040,1.71723728,25904.0,25903.0,0.002]
[1694116241236,1.53133053,25904.0,25903.0,0.002]
[1694116241497,1.4848524,25904.0,25903.0,0.002]
[1694116241716,1.4841324,25904.0,25903.0,0.002]
[1694116241927,1.42171904,25904.0,25903.0,0.002]
[1694116242153,1.42231904,25904.0,25903.0,0.002]
[1694116242387,1.48520313,25904.0,25903.0,0.002]
[1694116242603,1.56020209,25904.0,25903.0,0.002]
[1694116242875,1.37488179,25904.0,25903.0,0.002]
[1694116243047,1.37422179,25904.0,25903.0,0.002]
[1694116243264,1.37608179,25904.0,25903.0,0.002]
[1694116243465,1.66492179,25904.0,25903.0,0.002]
[1694116243682,1.66468179,25904.0,25903.0,0.002]
[1694116243950,1.75632487,25904.0,25903.0,0.002]
[1694116244187,1.66528179,25904.0,25903.0,0.002]
[1694116244408,1.66450179,25904.0,25903.0,0.002]
[1694116244566,1.75721151,25904.0,25903.0,0.002]
[1694116244721,1.66468179,25904.0,25903.0,0.002]
[1694116244918,1.66462179,25904.0,25903.0,0.002]
[1694116245144,1.66546179,25904.0,25903.0,0.002]
[1694116245350,2.40506209,25904.0,25903.0,0.002]
[1694116245571,2.08804179,25904.0,25903.0,0.002]
[1694116245777,2.08654179,25904.0,25903.0,0.002]
[1694116245983,2.08630179,25904.0,25903.0,0.002]
[1694116246228,2.08594179,25904.0,25903.0,0.002]
[1694116246431,2.17729915,25904.0,25903.0,0.002]
[1694116246605,2.17513915,25904.0,25903.0,0.002]
[1694116246812,2.17525915,25904.0,25903.0,0.002]
[1694116247025,2.17573915,25904.0,25903.0,0.002]
[1694116247219,2.17513915,25904.0,25903.0,0.002]
[1694116247417,2.0361761,25904.0,25903.0,0.002]
[1694116247755,2.0356961,25904.0,25903.0,0.002]
[1694116247959,2.0352761,25904.0,25903.0,0.002]
[1694116248162,2.0349761,25904.0,25903.0,0.002]
[1694116248342,2.07988179,25904.0,25903.0,0.002]
[1694116248579,2.03322455,25904.0,25903.0,0.002]
[1694116248925,2.03280455,25904.0,25903.0,0.002]
[1694116249198,2.06311363,25904.0,25903.0,0.002]
[1694116249419,2.06287363,25904.0,25903.0,0.002]
[1694116249659,2.06155363,25904.0,25903.0,0.002]
[1694116249890,2.06107363,25904.0,25903.0,0.002]
[1694116250112,2.05987363,25904.0,25903.0,0.002]
[1694116250337,2.22065363,25904.0,25903.0,0.002]
[1694116250543,2.12822782,25904.0,25903.0,0.002]
[1694116250779,2.10908782,25904.0,25903.0,0.002]
[1694116250996,2.10926782,25904.0,25903.0,0.002]
[1694116251191,2.10938782,25904.0,25903.0,0.002]
[1694116251470,2.11028782,25904.0,25903.0,0.002]
[1694116251709,2.11172782,25904.0,25903.0,0.002]
[1694116251923,2.11586782,25904.0,25903.0,0.002]
[1694116252058,2.11748782,25904.0,25903.0,0.002]
[1694116252291,2.11700782,25904.0,25903.0,0.002]
[1694116252493,2.11694782,25904.0,25903.0,0.002]
[1694116252695,2.11706782,25904.0,25903.0,0.002]
[1694116253063,2.11676782,25904.0,25903.0,0.002]
[1694116253268,2.11646782,25904.0,25903.0,0.002]
[1694116253682,2.11634782,25904.0,25903.0,0.002]
[1694116253858,2.11628782,25904.0,25903.0,0.002]
[1694116254222,2.11592782,25904.0,25903.0,0.002]
[1694116254417,2.11580782,25904.0,25903.0,0.002]
[1694116254628,2.11562782,25904.0,25903.0,0.002]
[1694116254951,2.11592782,25904.0,25903.0,0.002]
[1694116255151,2.11610782,25904.0,25903.0,0.002]
[1694116255346,2.11724782,25904.0,25903.0,0.002]
[1694116255576,2.11712782,25904.0,25903.0,0.002]
[1694116255757,2.11700782,25904.0,25903.0,0.002]
[1694116255960,1.95598782,25904.0,25903.0,0.002]
[1694116256163,1.95586782,25904.0,25903.0,0.002]
[1694116256363,1.95580782,25904.0,25903.0,0.002]
[1694116256520,2.11664782,25904.0,25903.0,0.002]
[1694116256719,2.11616782,25904.0,25903.0,0.002]
[1694116256927,2.11838782,25904.0,25903.0,0.002]
[1694116257125,2.11808782,25904.0,25903.0,0.002]
[1694116257351,2.11814782,25904.0,25903.0,0.002]
[1694116257552,2.11808782,25904.0,25903.0,0.002]
[1694116257873,2.12240782,25904.0,25903.0,0.002]
[1694116258120,2.12300782,25904.0,25903.0,0.002]
[1694116258301,2.12408782,25904.0,25903.0,0.002]
[1694116258479,2.12426782,25904.0,25903.0,0.002]
[1694116258658,2.12468782,25904.0,25903.0,0.002]
[1694116259023,2.12426782,25904.0,25903.0,0.002]
[1694116259234,2.12438782,25904.0,25903.0,0.002]
[1694116259400,2.12474782,25904.0,25903.0,0.002]
[1694116259576,2.12522782,25904.0,25903.0,0.002]
[1694116259786,2.12492782,25904.0,25903.0,0.002]
[1694116259989,2.12534782,25904.0,25903.0,0.002]
[1694116260195,2.12570782,25904.0,25903.0,0.002]
[1694116260374,2.12336782,25904.0,25903.0,0.002]
[1694116260754,2.12312782,25904.0,25903.0,0.002]
[1694116260914,2.12114782,25904.0,25903.0,0.002]
[1694116261129,2.12120782,25904.0,25903.0,0.002]
[1694116261382,2.12312782,25904.0,25903.0,0.002]
[1694116261587,2.12288782,25904.0,25903.0,0.002]
[1694116261788,2.12396782,25904.0,25903.0,0.002]
[1694116261927,2.12468782,25904.0,25903.0,0.002]
[1694116262362,2.12474782,25904.0,25903.0,0.002]
[1694116262575,2.12486782,25904.0,25903.0,0.002]
[1694116262784,2.12444782,25904.0,25903.0,0.002]
[1694116262987,2.12366782,25904.0,25903.0,0.002]
[1694116263225,2.28820128,25904.0,25903.0,0.002]
[1694116263389,2.28832128,25904.0,25903.0,0.002]
[1694116263602,2.28820128,25904.0,25903.0,0.002]
[1694116263776,2.28856128,25904.0,25903.0,0.002]
[1694116263979,2.28862128,25904.0,25903.0,0.002]
[1694116264180,2.28874128,25904.0,25903.0,0.002]
[1694116264380,2.28892128,25904.0,25903.0,0.002]
[1694116264611,2.28898128,25904.0,25903.0,0.002]
[1694116264811,2.28910128,25904.0,25903.0,0.002]
[1694116265023,2.28916128,25904.0,25903.0,0.002]
[1694116265221,2.28880128,25904.0,25903.0,0.002]
[1694116265421,2.28934128,25904.0,25903.0,0.002]
[1694116265661,2.28952128,25904.0,25903.0,0.002]
[1694116266059,2.28982128,25904.0,25903.0,0.002]
[1694116266266,2.29012128,25904.0,25903.0,0.002]
[1694116266486,2.42830433,25904.0,25903.0,0.002]
[1694116266720,2.42836433,25904.0,25903.0,0.002]
[1694116267010,2.42866433,25904.0,25903.0,0.002]
[1694116267209,2.33647852,25904.0,25903.0,0.002]
[1694116267507,2.33653852,25904.0,25903.0,0.002]
[1694116267707,2.33701852,25904.0,25903.0,0.002]
[1694116267926,2.34715852,25904.0,25903.0,0.002]
[1694116268069,2.54445736,25904.0,25903.0,0.002]
[1694116268283,2.36039706,25904.0,25903.0,0.002]
[1694116268519,2.40633431,25904.0,25903.0,0.002]
[1694116268723,2.40639431,25904.0,25903.0,0.002]
[1694116268920,2.40645431,25904.0,25903.0,0.002]
[1694116269147,2.41173431,25904.0,25903.0,0.002]
[1694116269352,2.40509469,25904.0,25903.0,0.002]
[1694116269524,2.69930173,25904.0,25903.0,0.002]
[1694116269727,2.69780173,25904.0,25903.0,0.002]
[1694116269921,2.69792173,25904.0,25903.0,0.002]
[1694116270175,2.69696173,25904.0,25903.0,0.002]
[1694116270352,2.69738173,25904.0,25903.0,0.002]
[1694116270525,2.51668143,25904.0,25903.0,0.002]
[1694116270731,2.51476143,25904.0,25903.0,0.002]
[1694116270932,2.51374143,25904.0,25903.0,0.002]
[1694116271139,2.51284143,25904.0,25903.0,0.002]
[1694116271521,2.281883,25904.0,25903.0,0.002]
[1694116271725,2.281943,25904.0,25903.0,0.002]
[1694116271922,2.284103,25904.0,25903.0,0.002]
[1694116272177,2.282723,25904.0,25903.0,0.002]
[1694116272318,2.282783,25904.0,25903.0,0.002]
[1694116272516,2.282843,25904.0,25903.0,0.002]
[1694116272792,2.282903,25904.0,25903.0,0.002]
[1694116272940,2.283023,25904.0,25903.0,0.002]
[1694116273359,2.285423,25904.0,25903.0,0.002]
[1694116273564,2.69655145,25904.0,25903.0,0.002]
[1694116273767,2.69703145,25904.0,25903.0,0.002]
[1694116274082,2.69763145,25904.0,25903.0,0.002]
[1694116274306,2.69811145,25904.0,25903.0,0.002]
[1694116274579,2.69643145,25904.0,25903.0,0.002]
[1694116274778,2.69775145,25904.0,25903.0,0.002]
[1694116274959,2.56317145,25904.0,25903.0,0.002]
[1694116275134,2.56329145,25904.0,25903.0,0.002]
[1694116275349,2.56137145,25904.0,25903.0,0.002]
[1694116275688,2.56155145,25904.0,25903.0,0.002]
[1694116275838,2.56077145,25904.0,25903.0,0.002]
[1694116276076,2.56041145,25904.0,25903.0,0.002]
[1694116276246,2.41786145,25904.0,25903.0,0.002]
[1694116276621,2.142213,25904.0,25903.0,0.002]
[1694116276801,2.276193,25904.0,25903.0,0.002]
[1694116277022,2.281833,25904.0,25903.0,0.002]
[1694116277247,2.285673,25904.0,25903.0,0.002]
[1694116277453,0.02,25897.0,25895.0,0.16679648]
[1694116277682,0.75579805,25896.0,25895.0,0.00099648]
[1694116277904,0.86999805,25896.0,25895.0,0.00099648]
[1694116278129,0.71957676,25896.0,25894.0,0.16244552]
[1694116278368,0.1192,25895.0,25894.0,0.16244552]
[1694116278587,0.50775322,25895.0,25894.0,0.16244552]
[1694116279216,0.50775322,25895.0,25894.0,0.16444552]
[1694116279859,0.60037676,25895.0,25894.0,0.16444552]
[1694116280061,0.60037676,25895.0,25894.0,0.16244552]
[1694116280276,0.61437676,25895.0,25894.0,0.001]
[1694116280680,0.52175322,25895.0,25894.0,0.001]
[1694116280962,0.61437676,25895.0,25894.0,0.001]
[1694116281166,0.71798702,25895.0,25894.0,0.001]
[1694116281522,0.87292233,25895.0,25894.0,0.003]
[1694116282513,0.78029879,25895.0,25894.0,0.003]
[1694116282714,0.87297363,25895.0,25894.0,0.003]
[1694116283534,0.78029879,25895.0,25894.0,0.003]
[1694116284189,0.87296438,25895.0,25894.0,0.003]
[1694116284649,0.78029879,25895.0,25894.0,0.003]
[1694116285329,0.96554588,25895.0,25894.0,0.003]
[1694116285560,1.05647546,25895.0,25894.0,0.003]
[1694116285797,1.11281984,25895.0,25894.0,0.003]
[1694116286033,1.00273465,25895.0,25894.0,0.003]
[1694116286240,1.06728669,25895.0,25894.0,0.003]
[1694116286680,1.02200707,25895.0,25894.0,0.003]
[1694116286883,0.83669075,25895.0,25894.0,0.003]
[1694116289090,0.92932981,25895.0,25894.0,0.003]
[1694116289557,0.83669075,25895.0,25894.0,0.003]
[1694116290238,0.92932838,25895.0,25894.0,0.003]
[1694116290464,0.83669075,25895.0,25894.0,0.003]
[1694116290706,0.92932685,25895.0,25894.0,0.003]
[1694116290959,0.17897605,25895.0,25894.0,0.003]
[1694116291253,0.08634438,25895.0,25894.0,0.9271962]
[1694116291968,0.08634438,25895.0,25894.0,0.1548172]
[1694116293618,0.08634438,25895.0,25894.0,2.320137]
[1694116293893,0.23161456,25900.0,25895.0,0.02772]
[1694116294117,0.09263167,25901.0,25897.0,0.00772]
[1694116294338,0.23161456,25902.0,25898.0,1.69992929]
[1694116294559,0.09263167,25902.0,25898.0,3.24444129]
[1694116294785,0.05975831,25900.0,25898.0,3.24444129]
[1694116295015,0.05975831,25900.0,25898.0,3.08902]
[1694116295264,0.09263167,25902.0,25898.0,3.08902]
[1694116295466,0.09263167,25902.0,25900.0,0.1192]
[1694116295689,0.23161456,25903.0,25900.0,1.663568]
[1694116295948,0.001,25902.0,25901.0,0.14241381]
[1694116296161,0.06094661,25902.0,25901.0,0.14241381]
[1694116296391,0.06094661,25902.0,25901.0,0.77217]
[1694116296603,0.05994661,25902.0,25901.0,2.43571]
[1694116297464,0.09263167,25904.0,25901.0,2.43571]
[1694116297678,0.13898289,25905.0,25901.0,2.43571]
[1694116297679,0.23161456,25905.0,25903.0,0.1192]
[1694116297888,0.23161456,25905.0,25904.0,1.544162]
[1694116298514,0.09263167,25905.0,25904.0,1.67459196]
[1694116299160,0.09263167,25905.0,25904.0,1.79379196]
[1694116299368,0.025,25905.0,25904.0,2.56787296]
[1694116301786,0.08559419,25905.0,25904.0,2.56787296]
[1694116304641,0.08559419,25905.0,25904.0,2.556643]
[1694116304848,0.08559419,25905.0,25904.0,2.70961464]
[1694116305313,0.025,25905.0,25904.0,2.70961464]
[1694116305519,0.012,25905.0,25904.0,2.58941464]
[1694116305719,0.32940318,25909.0,25904.0,1.81633364]
[1694116305720,0.09074676,25907.0,25904.0,1.81633364]
[1694116305922,0.015,25905.0,25904.0,1.83033364]
[1694116306373,0.014,25905.0,25904.0,1.81733364]
[1694116306587,0.014,25905.0,25904.0,1.84233364]
[1694116306588,0.015,25905.0,25904.0,1.84233364]
[1694116307358,0.001,25905.0,25904.0,1.84133364]
[1694116307765,0.002,25905.0,25904.0,1.84133364]
[1694116307983,0.003,25905.0,25904.0,1.86633364]
[1694116308189,0.001,25905.0,25904.0,1.84133364]
[1694116308362,0.003,25905.0,25904.0,1.86633364]
[1694116309538,0.06367867,25905.0,25904.0,1.86633364]
[1694116309742,0.06367867,25905.0,25904.0,0.32217164]
[1694116309743,0.003,25905.0,25904.0,0.32217164]
[1694116309944,0.003,25905.0,25904.0,1.86633364]
[1694116312019,0.003,25905.0,25904.0,1.83433364]
[1694116315355,0.003,25905.0,25904.0,2.60641464]
[1694116320154,0.24675983,25915.0,25905.0,0.16]
[1694116320264,0.10763423,25916.0,25910.0,2.31567]
[1694116320502,0.161,25915.0,25914.0,0.1192]
[1694116320714,0.10103423,25916.0,25914.0,1.04640429]
[1694116320949,0.09393012,25915.0,25914.0,0.15542129]
[1694116321160,0.0883864,25915.0,25913.0,0.77181]
[1694116321843,0.38855322,25916.0,25914.0,0.011]
[1694116322048,0.38855322,25916.0,25914.0,0.018]
[1694116323307,0.38855322,25916.0,25913.0,0.79681]
[1694116323515,0.38855322,25916.0,25913.0,0.77181]
[1694116323721,0.38855322,25916.0,25914.0,0.02]
[1694116324142,0.38855322,25916.0,25913.0,0.77181]
[1694116324369,0.38855322,25916.0,25913.0,0.79181]
[1694116324609,0.38855322,25916.0,25913.0,0.80016036]
[1694116324852,0.38855322,25916.0,25913.0,0.81816036]
[1694116325098,0.38855322,25916.0,25914.0,0.02]
[1694116325373,0.38855322,25916.0,25913.0,0.81816036]
[1694116326357,0.38855322,25916.0,25913.0,0.80016036]
[1694116326844,0.38855322,25916.0,25914.0,0.018]
[1694116327306,0.38855322,25916.0,25913.0,0.82016036]
[1694116327560,0.11090413,25915.0,25913.0,0.82016036]
[1694116327788,0.11090413,25915.0,25913.0,0.83816036]
[1694116328029,0.11090413,25915.0,25913.0,0.81816036]
[1694116328251,0.11090413,25915.0,25914.0,0.02]
[1694116329070,0.11090413,25915.0,25913.0,0.81816036]
[1694116329482,0.11090413,25915.0,25913.0,0.80016036]
[1694116329888,0.11090413,25915.0,25913.0,0.82516036]
[1694116330159,0.38855322,25916.0,25913.0,0.82516036]
[1694116330427,0.38855322,25916.0,25913.0,0.85016036]
[1694116330617,0.06063985,25914.0,25913.0,0.85016036]
[1694116330832,0.47393594,25916.0,25913.0,0.85016036]
[1694116331025,0.47393594,25916.0,25913.0,0.82516036]
[1694116331162,0.47393594,25916.0,25913.0,0.81816036]
[1694116331364,0.47393594,25916.0,25913.0,0.83816036]
[1694116337895,0.47393594,25916.0,25914.0,0.13629976]
[1694116339248,0.56618377,25916.0,25914.0,0.13629976]
[1694116339465,0.56618377,25916.0,25914.0,0.15429976]
[1694116339894,0.56618377,25916.0,25914.0,0.17429976]
[1694116340095,0.56618377,25916.0,25914.0,0.038]
[1694116341177,0.60000105,25915.0,25914.0,0.038]
[1694116341395,0.71632207,25915.0,25914.0,0.038]
[1694116341846,0.59712207,25915.0,25914.0,0.038]
[1694116342279,0.59712207,25915.0,25914.0,0.02]
[1694116342701,0.59712207,25915.0,25914.0,0.001]
[1694116343130,0.59712207,25915.0,25912.0,0.10986511]
[1694116343359,0.59712207,25915.0,25914.0,0.004]
[1694116343568,0.66137424,25915.0,25914.0,0.004]
[1694116343777,0.73583484,25915.0,25914.0,0.004]
[1694116343986,0.73583484,25915.0,25914.0,0.003]
[1694116344200,0.64345054,25915.0,25914.0,0.003]
[1694116344694,0.76265054,25915.0,25914.0,0.003]
[1694116344940,0.94741914,25915.0,25914.0,0.003]
[1694116345174,0.80384284,25915.0,25914.0,0.003]
[1694116345401,0.86595351,25915.0,25914.0,0.003]
[1694116345636,0.92254664,25915.0,25914.0,0.003]
[1694116346256,0.92254664,25915.0,25914.0,0.004]
[1694116346530,1.15350739,25915.0,25914.0,0.004]
[1694116347706,0.96873879,25915.0,25914.0,0.004]
[1694116348664,1.0392192,25915.0,25914.0,0.004]
[1694116349505,1.32197754,25915.0,25914.0,0.004]
[1694116349714,1.33783754,25915.0,25914.0,0.004]
[1694116349924,1.33837754,25915.0,25914.0,0.004]
[1694116350124,1.34149754,25915.0,25914.0,0.004]
[1694116350331,1.34215754,25915.0,25914.0,0.003]
[1694116350546,1.06494464,25915.0,25914.0,0.003]
[1694116350767,0.06,25914.0,25908.0,0.13201904]
[1694116350975,0.09243861,25910.0,25908.0,0.13201904]
[1694116351179,0.09243861,25909.0,25908.0,0.13201904]
[1694116352930,0.23109652,25909.0,25908.0,0.13301904]
[1694116353150,0.23109652,25909.0,25908.0,0.14401904]
[1694116353362,0.23109652,25909.0,25908.0,0.011]
[1694116353794,0.13865791,25909.0,25908.0,0.02]
[1694116354221,0.52721113,25909.0,25908.0,0.02]
[1694116354625,0.71208835,25909.0,25908.0,0.02]
[1694116355548,0.52721113,25909.0,25908.0,0.02]
[1694116358757,0.71208835,25909.0,25908.0,0.02]
[1694116359157,0.79583844,25909.0,25908.0,0.02]
[1694116359358,0.75293012,25909.0,25908.0,0.02]
[1694116359621,0.56474192,25909.0,25908.0,0.02]
[1694116360010,0.65321715,25909.0,25908.0,0.011]
[1694116360411,0.56474192,25909.0,25908.0,0.011]
[1694116360641,0.62868632,25909.0,25908.0,0.011]
[1694116360856,0.69882632,25909.0,25908.0,0.011]
[1694116361101,0.79978965,25909.0,25908.0,0.011]
[1694116361341,0.62868632,25909.0,25908.0,0.011]
[1694116361586,0.78223517,25909.0,25903.0,0.24894458]
[1694116361822,0.0924626,25905.0,25903.0,0.03334458]
[1694116362248,0.0924626,25905.0,25903.0,0.03236053]